bitfinex/quotes_ETHUSD_20260113
["timestamp","ask_amount","ask_price","bid_price","bid_amount"]
[1768309545555,8.1010608,3129.1,3128.4,3.447456]
[1768309545556,9.04113879,3129.1,3128.4,0.251]
[1768309546229,12.23697708,3129.1,3128.4,0.251]
[1768309546427,4.90522251,3128.9,3128.4,0.251]
[1768309548258,8.10123476,3128.9,3128.4,0.251]
[1768309549576,4.90522251,3128.7,3128.4,0.251]
[1768309550331,12.38105287,3128.9,3128.2,0.92474293]
[1768309550660,13.32113086,3128.9,3128.3,0.251]
[1768309551445,13.32113086,3128.9,3128.2,0.92474293]
[1768309551446,0.94007799,3128.8,3128.4,0.251]
[1768309551637,4.90522251,3128.6,3128.4,0.251]
[1768309554563,8.10136405,3128.8,3128.4,0.251]
[1768309555451,9.43348345,3128.8,3128.7,0.002]
[1768309555771,9.43348345,3128.8,3128.4,0.253]
[1768309559374,4.90522251,3128.6,3128.1,0.002]
[1768309559574,4.90522251,3128.6,3128.2,0.251]
[1768309560678,8.10154437,3128.6,3128.2,0.251]
[1768309560976,9.3645221,3128.6,3128.2,0.251]
[1768309561763,4.90522251,3128.4,3128.2,0.251]
[1768309562273,4.90522251,3128.2,3127.9,0.92474293]
[1768309562446,4.90522251,3128.2,3128.0,0.251]
[1768309562866,4.90522251,3128.4,3128.0,0.251]
[1768309564473,9.3645221,3128.6,3128.0,1.17574293]
[1768309567677,9.3645221,3128.6,3128.3,0.002]
[1768309567878,1.25607597,3128.5,3128.3,0.002]
[1768309568177,1.25607597,3128.5,3128.0,1.17774293]
[1768309568367,4.90522251,3128.4,3128.0,1.17774293]
[1768309570982,8.10175585,3128.4,3128.0,1.17774293]
[1768309573758,4.90522251,3128.4,3128.0,1.17774293]
[1768309580293,4.90522251,3128.4,3128.3,0.002]
[1768309580483,4.90522251,3128.4,3128.0,1.17774293]
[1768309580686,0.001,3128.3,3128.0,1.17774293]
[1768309584798,0.001,3128.3,3128.0,4.37464386]
[1768309586481,0.001,3128.3,3128.0,1.17774293]
[1768309587474,0.001,3128.3,3128.0,4.37465754]
[1768309592920,0.001,3128.3,3128.1,0.96275601]
[1768309594613,0.001,3128.3,3128.0,0.253]
[1768309595140,0.001,3128.3,3128.0,3.44992999]
[1768309596308,0.001,3128.3,3128.0,0.253]
[1768309597022,0.001,3128.3,3128.0,0.002]
[1768309598994,0.001,3128.3,3128.0,0.95411423]
[1768309599192,0.001,3128.3,3128.0,4.1510438]
[1768309600307,0.001,3128.3,3128.1,0.95211423]
[1768309603454,0.001,3128.3,3128.1,4.14889567]
[1768309606115,0.001,3128.3,3128.0,4.1509993]
[1768309607126,0.001,3128.3,3128.1,3.19679957]
[1768309607321,0.001,3128.3,3128.1,4.1489138]
[1768309611157,3.22805368,3128.8,3128.1,4.1489138]
[1768309611356,3.22805368,3128.8,3128.0,0.95411423]
[1768309611357,0.29889337,3128.7,3128.0,0.95411423]
[1768309611656,0.29889337,3128.6,3128.0,0.95411423]
[1768309611859,4.22115239,3128.8,3128.0,0.95411423]
[1768309612154,0.29888959,3128.7,3128.0,0.95411423]
[1768309612323,0.29888959,3128.6,3128.0,0.95411423]
[1768309612520,4.22115239,3128.8,3128.0,0.95411423]
[1768309612721,0.29888554,3128.7,3128.0,0.95411423]
[1768309612925,0.29888554,3128.6,3128.0,0.95411423]
[1768309613123,4.18923599,3128.8,3128.0,0.95411423]
[1768309613325,0.29889467,3128.7,3128.0,0.95411423]
[1768309613563,4.18923599,3128.8,3128.1,3.19682874]
[1768309613730,0.29884689,3128.7,3128.1,3.19682874]
[1768309613944,4.18923599,3128.8,3128.1,3.19682874]
[1768309614132,0.29884685,3128.7,3128.1,3.19682874]
[1768309614444,0.99309871,3128.8,3128.1,3.19682874]
[1768309614761,0.99309871,3129.0,3128.2,0.95211423]
[1768309614950,0.2988221,3128.9,3128.2,0.95211423]
[1768309615262,0.99309871,3129.0,3128.2,0.95211423]
[1768309615459,0.29870275,3128.9,3128.3,4.39973859]
[1768309615761,0.99309871,3129.0,3128.3,4.39973859]
[1768309616058,0.0008,3129.3,3128.4,0.95211423]
[1768309616361,0.29868164,3129.2,3128.4,0.95211423]
[1768309616656,0.29868164,3129.1,3128.4,0.95211423]
[1768309616865,4.90671352,3129.6,3128.6,0.95211423]
[1768309616866,3.19554596,3129.4,3128.6,0.95211423]
[1768309617057,0.29859298,3129.3,3128.6,0.95211423]
[1768309617257,0.29859298,3129.2,3128.6,0.95211423]
[1768309617457,4.90671352,3129.6,3128.3,9.84087308]
[1768309617458,8.10205227,3129.6,3128.8,0.95211423]
[1768309617760,0.29844254,3129.5,3128.9,1.20311423]
[1768309617951,8.10205227,3129.6,3128.9,1.20311423]
[1768309618140,0.29844259,3129.5,3128.9,1.20311423]
[1768309618339,8.10205227,3129.6,3128.9,1.20311423]
[1768309618560,0.2983189,3129.5,3128.9,1.20311423]
[1768309618761,8.10205227,3129.6,3128.9,1.20311423]
[1768309619061,0.29831841,3129.5,3128.9,1.20311423]
[1768309619260,8.10205227,3129.6,3128.9,1.20311423]
[1768309619462,0.2982067,3129.5,3129.0,3.19590923]
[1768309619664,0.00081648,3129.7,3129.1,0.95211423]
[1768309620758,0.00081648,3129.7,3129.1,4.14790438]
[1768309623678,0.00081648,3129.7,3129.2,0.95211423]
[1768309624780,0.00081648,3129.7,3129.1,3.19579015]
[1768309625279,0.00081648,3129.7,3129.0,4.13493259]
[1768309625454,0.97831823,3129.7,3129.0,4.13493259]
[1768309625654,0.97831823,3129.7,3129.1,3.19579713]
[1768309625985,0.97831823,3129.7,3129.1,3.44679713]
[1768309628388,0.001,3129.4,3129.1,3.44679713]
[1768309629271,0.001,3129.4,3129.1,4.38585759]
[1768309630785,0.001,3129.4,3129.1,1.19006046]
[1768309630964,0.001,3129.4,3129.1,0.251]
[1768309631282,0.001,3129.4,3129.1,3.44679426]
[1768309638779,0.001,3129.4,3129.1,4.39594162]
[1768309639369,0.95998458,3129.4,3128.8,3.44706515]
[1768309639687,1.32147868,3129.4,3128.8,0.251]
[1768309639994,0.95898458,3129.2,3128.4,0.94914736]
[1768309640162,5.8656981,3129.0,3128.2,0.94914736]
[1768309640362,0.95898458,3128.9,3128.2,0.94914736]
[1768309640696,0.95898458,3128.8,3128.1,3.19678693]
[1768309640874,4.15512801,3128.8,3128.1,3.19678693]
[1768309641689,4.15512801,3128.8,3128.0,4.39905652]
[1768309645392,0.95898458,3128.8,3128.1,4.14594691]
[1768309645706,3.78259806,3128.9,3128.2,0.94914736]
[1768309647006,3.19596705,3129.0,3128.2,0.94914736]
[1768309647750,3.19596705,3129.0,3128.2,4.1458401]
[1768309648208,3.19596705,3129.0,3128.3,0.94914736]
[1768309648502,6.39192661,3129.0,3128.3,0.94914736]
[1768309651781,6.39192661,3129.0,3128.5,0.002]
[1768309651982,7.12701773,3129.0,3128.5,0.002]
[1768309658814,3.93105068,3129.0,3128.5,0.002]
[1768309659531,3.19586204,3129.1,3128.5,0.99867465]
[1768309660581,3.19570497,3129.2,3128.5,0.99867465]
[1768309661201,3.19570497,3129.2,3128.6,0.99667465]
[1768309661798,3.19570497,3129.2,3128.1,0.002]
[1768309661799,0.9289339,3128.8,3128.1,0.002]
[1768309662014,0.58356474,3128.7,3128.1,0.002]
[1768309662321,0.9289339,3128.8,3128.1,3.19882194]
[1768309662699,0.9289339,3128.8,3128.1,4.19549659]
[1768309663114,4.12514543,3128.8,3128.1,4.19549659]
[1768309664116,4.12514543,3128.8,3128.4,0.002]
[1768309665325,4.90710766,3128.7,3128.4,0.002]
[1768309665727,4.12504947,3128.8,3128.4,0.002]
[1768309665893,4.90710766,3129.1,3128.4,0.99867465]
[1768309666426,4.90710766,3128.9,3128.4,0.99867465]
[1768309666622,4.37563887,3129.2,3128.4,0.99867465]
[1768309666924,4.90710766,3129.0,3128.4,0.99867465]
[1768309667125,8.10308148,3129.0,3128.4,0.99867465]
[1768309669127,3.49442108,3128.9,3128.4,0.99867465]
[1768309669299,3.19601474,3128.9,3128.4,0.99867465]
[1768309670429,0.29871974,3128.8,3128.4,0.99867465]
[1768309670599,3.19601474,3128.9,3128.4,0.99867465]
[1768309670799,0.29872064,3128.8,3128.4,0.99867465]
[1768309671099,3.19601474,3128.9,3128.4,0.99867465]
[1768309671300,5.20582841,3128.8,3128.4,0.002]
[1768309671613,4.90710766,3128.8,3128.4,0.002]
[1768309671916,8.10323908,3128.8,3128.4,0.002]
[1768309676135,0.001,3128.5,3128.4,0.002]
[1768309690546,9.62548555,3129.5,3128.4,0.002]
[1768309690547,0.001,3129.4,3128.5,0.96026379]
[1768309690745,0.001,3129.4,3128.6,0.96026379]
[1768309690746,0.2987884,3129.3,3128.6,0.96026379]
[1768309690949,0.2987884,3129.2,3128.6,0.96026379]
[1768309691246,4.90710766,3129.3,3128.6,0.96026379]
[1768309691447,0.29867737,3129.2,3128.6,0.96026379]
[1768309691649,4.90710766,3129.3,3128.6,0.96026379]
[1768309692773,4.90710766,3129.3,3128.7,3.19621568]
[1768309693259,3.19654912,3129.4,3128.7,3.19621568]
[1768309693432,0.29854129,3129.3,3128.7,4.15647947]
[1768309693627,3.19654912,3129.4,3128.7,4.15647947]
[1768309693823,0.29855083,3129.3,3128.7,4.15647947]
[1768309694022,3.19654912,3129.4,3128.7,4.15647947]
[1768309694254,0.29855099,3129.3,3128.7,4.15647947]
[1768309694453,3.19654912,3129.4,3128.8,0.96026379]
[1768309694624,0.29855982,3129.3,3128.8,0.96026379]
[1768309694823,3.19654912,3129.4,3128.8,0.96026379]
[1768309695026,0.001,3129.4,3128.8,0.96026379]
[1768309695257,0.001,3129.4,3128.9,0.93990297]
[1768309697456,0.001,3129.4,3129.0,0.93990297]
[1768309700031,0.001,3129.1,3129.0,0.93990297]
[1768309705170,0.001,3129.4,3129.0,0.93990297]
[1768309705369,7.47329946,3132.7,3129.0,0.93990297]
[1768309705694,20.08549384,3138.1,3132.1,0.16]
[1768309705696,4.90710766,3134.4,3132.1,0.16]
[1768309705979,4.90710766,3134.4,3132.0,5.84701063]
[1768309705980,4.58736198,3134.3,3132.8,1.71936085]
[1768309706185,9.75055723,3134.7,3132.2,0.251]
[1768309706186,0.251,3134.2,3133.7,0.0008064]
[1768309706334,9.81421532,3133.8,3132.3,1.80514754]
[1768309706536,0.0008064,3134.1,3132.4,0.251]
[1768309706737,4.90710766,3133.5,3132.6,1.13972457]
[1768309706980,0.0008064,3134.1,3132.6,1.13972457]
[1768309706981,4.90710766,3134.0,3132.6,1.13972457]
[1768309707272,0.0008064,3134.1,3132.7,0.93990297]
[1768309707474,0.0008064,3134.1,3133.6,0.93990297]
[1768309707801,0.0008064,3134.1,3133.5,4.90710766]
[1768309707802,0.002,3134.8,3133.9,0.93990297]
[1768309708068,0.00080528,3135.1,3134.3,0.93990297]
[1768309708862,0.00080528,3135.1,3134.5,0.93990297]
[1768309709068,0.0008024,3135.5,3134.7,0.93990297]
[1768309709244,0.251,3135.8,3134.7,0.94070833]
[1768309709245,5.15810766,3135.8,3134.7,0.94070833]
[1768309709449,0.251,3135.8,3134.7,4.13080251]
[1768309709975,0.0008117,3135.9,3134.8,0.23295048]
[1768309710285,0.0008117,3135.9,3134.9,0.13050394]
[1768309710286,6.37857112,3135.9,3134.9,0.13050394]
[1768309710566,6.37857112,3135.9,3134.0,4.13069228]
[1768309710567,0.00080536,3135.1,3134.1,3.19070014]
[1768309710780,0.00080536,3135.1,3134.2,3.19058843]
[1768309710983,0.00080536,3135.1,3134.0,0.93990297]
[1768309711148,0.00080536,3135.1,3134.2,3.19052623]
[1768309711347,0.00080536,3135.1,3134.1,3.19070865]
[1768309711563,0.00080536,3135.1,3134.2,0.93990297]
[1768309711765,0.001,3134.5,3134.2,0.93990297]
[1768309711970,0.00080536,3135.1,3134.2,0.93990297]
[1768309712349,0.00080536,3135.1,3134.2,1.19090297]
[1768309712755,0.00080536,3135.1,3134.2,0.93990297]
[1768309713282,0.00080536,3135.1,3134.3,0.93990297]
[1768309714066,0.00080536,3135.1,3134.0,4.13068828]
[1768309714277,0.00080536,3135.1,3134.1,0.251]
[1768309714584,0.00080536,3135.1,3134.2,0.251]
[1768309714899,0.00080536,3135.1,3134.2,3.44159367]
[1768309716071,0.00080536,3135.1,3134.2,4.40610868]
[1768309716382,0.00080536,3135.1,3134.3,0.96451501]
[1768309717082,0.00080536,3135.1,3134.2,3.44159367]
[1768309717278,0.00080536,3135.1,3134.3,0.96451501]
[1768309717481,0.00080536,3135.1,3134.4,0.96451501]
[1768309722359,0.00080536,3135.1,3134.4,4.1549038]
[1768309722885,0.00080536,3135.1,3134.4,0.96451501]
[1768309723278,0.00080536,3135.1,3134.6,0.96451501]
[1768309723479,0.002,3134.8,3134.6,0.96451501]
[1768309724861,0.00280536,3135.1,3134.6,0.96451501]
[1768309726298,0.00280536,3135.1,3134.7,0.96451501]
[1768309729999,0.00280536,3135.1,3134.8,0.96451501]
[1768309733505,0.00280536,3135.1,3134.6,3.19019736]
[1768309733809,0.00280536,3135.1,3134.7,0.22732676]
[1768309734104,0.00280536,3135.1,3134.6,3.19019736]
[1768309734313,0.00280536,3135.1,3134.7,0.22821506]
[1768309734608,0.00280536,3135.1,3134.8,0.22821506]
[1768309734774,0.00280536,3135.1,3134.9,0.22821506]
[1768309734973,0.00280536,3135.1,3134.5,4.15580202]
[1768309735197,0.00280536,3135.1,3135.0,0.8419827]
[1768309735399,3.18909016,3135.7,3135.0,1.13972457]
[1768309735605,3.18909016,3135.7,3135.3,0.85768175]
[1768309735606,0.38521277,3135.6,3135.3,0.85768175]
[1768309735784,0.38521277,3135.6,3135.2,1.82219676]
[1768309736184,0.38521277,3135.6,3135.3,0.85768175]
[1768309737110,0.38521277,3135.6,3135.2,2.10423958]
[1768309737306,3.189284,3135.5,3135.2,2.10423958]
[1768309737514,0.35744968,3135.4,3135.2,2.10423958]
[1768309738417,0.22272928,3135.4,3135.2,2.10423958]
[1768309738917,0.22272928,3135.4,3135.2,1.13972457]
[1768309739813,3.41219195,3135.4,3135.0,0.96451501]
[1768309742839,0.22272928,3135.4,3135.0,0.96451501]
[1768309743136,0.33486341,3135.3,3135.0,0.96451501]
[1768309744136,0.33486341,3135.3,3135.0,0.64451501]
[1768309744436,0.33486341,3135.3,3134.9,1.70936057]
[1768309744740,3.52436742,3135.3,3134.8,1.96036057]
[1768309745244,3.84436742,3135.3,3134.8,1.96036057]
[1768309745532,0.40670967,3135.2,3134.8,1.96036057]
[1768309745830,0.32,3135.1,3134.7,1.71016601]
[1768309746034,0.32,3135.1,3134.7,0.00080544]
[1768309746341,0.32,3135.1,3134.5,1e-08]
[1768309746342,0.319,3134.9,3134.5,1e-08]
[1768309746543,0.00080648,3134.1,3133.7,0.89086559]
[1768309746845,0.34154113,3134.5,3133.7,0.00080656]
[1768309747143,6.3803994,3134.6,3133.1,0.89006286]
[1768309747144,0.36488499,3134.0,3133.1,0.89006286]
[1768309747302,0.36488499,3134.0,3133.2,3.19154857]
[1768309748208,0.36488499,3134.0,3133.1,0.89006286]
[1768309748942,6.38182456,3133.9,3133.1,0.89006286]
[1768309749637,0.36488499,3133.8,3133.0,0.251]
[1768309749832,0.67467096,3133.7,3133.0,0.251]
[1768309750708,0.36488499,3133.5,3132.4,0.91340672]
[1768309750913,0.36488499,3133.5,3131.4,4.89048113]
[1768309750914,0.36488499,3133.2,3132.1,0.91340672]
[1768309751113,0.36488499,3133.2,3132.2,0.251]
[1768309751114,0.29796934,3133.1,3132.2,0.251]
[1768309751315,0.36488499,3133.2,3132.2,1.16440672]
[1768309751316,0.29796934,3133.0,3132.2,1.16440672]
[1768309751532,0.36488499,3133.2,3132.2,1.16440672]
[1768309751735,0.82316955,3133.1,3132.2,1.16440672]
[1768309751913,0.29763294,3133.0,3132.2,1.16440672]
[1768309752249,0.52553661,3133.1,3132.2,1.16440672]
[1768309753032,6.38365782,3133.0,3132.2,0.91340672]
[1768309753711,6.38365782,3133.0,3132.0,3.19277302]
[1768309753712,6.74854281,3133.0,3132.1,0.251]
[1768309753912,0.72740794,3132.9,3132.1,0.251]
[1768309754536,0.72740794,3132.9,3132.1,1.16440672]
[1768309755338,0.72740794,3132.9,3132.1,4.35714024]
[1768309755339,3.19203268,3132.8,3132.1,4.35714024]
[1768309755936,0.72740794,3132.9,3132.2,0.9516995]
[1768309755937,3.91938528,3132.9,3132.2,0.9516995]
[1768309756945,3.91935253,3132.9,3132.2,0.9516995]
[1768309757151,0.72740794,3132.9,3132.2,0.9516995]
[1768309757517,3.91934926,3132.9,3132.3,0.9516995]
[1768309758452,3.19194132,3132.9,3132.3,0.9516995]
[1768309759632,6.38325034,3133.2,3132.3,0.9516995]
[1768309760430,6.63409515,3133.3,3132.5,0.9526995]
[1768309760649,6.38309515,3133.3,3132.5,0.9526995]
[1768309760852,0.63830952,3133.2,3132.5,0.9526995]
[1768309761021,3.19143986,3133.4,3132.5,0.9526995]
[1768309761223,3.55612052,3133.6,3132.7,0.9516995]
[1768309761224,3.19121776,3133.6,3132.7,0.9516995]
[1768309761453,3.19121776,3133.6,3132.9,0.9516995]
[1768309761637,6.38243552,3133.6,3132.9,0.9516995]
[1768309761837,0.73081065,3133.5,3132.9,0.9516995]
[1768309763127,4.11682408,3133.7,3132.9,0.9516995]
[1768309763435,7.3079772,3133.7,3133.0,0.9516995]
[1768309763637,4.11682408,3133.7,3133.0,0.9516995]
[1768309764637,4.11682408,3133.7,3133.1,0.9516995]
[1768309765364,7.0569772,3133.7,3133.1,0.9516995]
[1768309767061,3.86582408,3133.7,3133.1,0.9516995]
[1768309768227,7.0569772,3133.7,3133.1,0.9516995]
[1768309769234,3.19115312,3133.7,3133.2,0.9516995]
[1768309770867,3.19106813,3133.8,3133.2,0.9516995]
[1768309771752,6.38173996,3134.0,3133.2,0.9516995]
[1768309772134,0.002,3133.4,3133.2,0.9516995]
[1768309773341,0.002,3133.7,3133.3,0.9516995]
[1768309774368,0.002,3133.7,3133.4,0.9516995]
[1768309783494,0.00080656,3134.1,3133.7,0.92042549]
[1768309785378,0.00080656,3134.1,3133.9,0.92042549]
[1768309787788,3.19009793,3134.7,3134.1,0.92042549]
[1768309787990,0.2981513,3134.6,3134.1,0.91242549]
[1768309788194,0.2981513,3134.5,3134.1,0.91242549]
[1768309788365,6.85887385,3134.7,3134.1,0.91242549]
[1768309788560,0.29814642,3134.6,3134.1,0.91242549]
[1768309788887,0.29814642,3134.5,3134.1,0.91242549]
[1768309789202,0.71570203,3134.5,3134.1,0.91242549]
[1768309789694,3.19040326,3134.4,3133.6,8.32992091]
[1768309789994,3.19040326,3134.4,3133.7,0.92042549]
[1768309790297,3.19040326,3134.4,3133.9,0.92042549]
[1768309792696,6.38080652,3134.4,3133.9,0.92042549]
[1768309792902,0.70965086,3134.3,3133.9,0.92042549]
[1768309793695,3.19040326,3134.4,3133.9,0.92042549]
[1768309794124,6.3803994,3134.6,3133.9,0.92042549]
[1768309794291,0.29821222,3134.5,3133.9,0.92042549]
[1768309794485,6.3803994,3134.6,3133.9,0.92042549]
[1768309794691,0.29821226,3134.5,3133.9,0.92042549]
[1768309795000,0.66786117,3134.4,3133.9,0.92042549]
[1768309796113,3.19050505,3134.3,3133.9,0.92042549]
[1768309796902,3.19250505,3134.3,3133.9,0.92042549]
[1768309798314,0.002,3134.3,3133.9,0.92042549]
[1768309799309,0.002,3134.3,3133.8,8.07870969]
[1768309799612,0.002,3134.3,3133.9,0.251]
[1768309800701,0.002,3134.3,3133.9,5.1387077]
[1768309800897,0.002,3134.3,3133.9,6.05913319]
[1768309801106,0.002,3134.9,3134.2,0.92042549]
[1768309801299,0.002,3134.9,3134.5,4.8877077]
[1768309801300,0.29834896,3134.8,3134.5,4.8877077]
[1768309801519,3.19193441,3134.9,3134.5,4.8877077]
[1768309801680,0.29833015,3134.8,3134.4,1.17142549]
[1768309801888,6.38186882,3134.9,3134.4,1.17142549]
[1768309802090,0.2983287,3134.8,3134.4,1.17142549]
[1768309802318,0.2983287,3134.8,3134.0,0.92042549]
[1768309802319,0.93101602,3134.8,3134.0,0.92042549]
[1768309802504,0.93101602,3134.6,3134.1,0.251]
[1768309805462,0.9529265,3134.4,3133.5,0.96743284]
[1768309805596,0.9529265,3134.2,3133.3,0.96743284]
[1768309805801,0.9529265,3134.2,3133.6,0.251]
[1768309807821,3.19050505,3134.3,3133.6,1.21843284]
[1768309808122,3.19038241,3134.5,3134.1,4.8877077]
[1768309808426,0.29854819,3134.4,3134.0,0.96743284]
[1768309808588,3.19038241,3134.5,3134.0,0.96743284]
[1768309808912,0.29855949,3134.4,3134.0,0.96743284]
[1768309809114,3.19038241,3134.5,3134.0,0.96743284]
[1768309809324,0.29859858,3134.4,3134.0,0.96743284]
[1768309809509,3.19038241,3134.5,3134.0,0.96743284]
[1768309809835,0.29860955,3134.4,3134.0,0.96743284]
[1768309810136,6.38019586,3134.7,3134.0,0.96743284]
[1768309810321,0.29865888,3134.6,3134.0,0.96743284]
[1768309810523,0.29865888,3134.5,3134.0,0.96743284]
[1768309810831,0.29865888,3134.4,3134.0,0.96743284]
[1768309811035,8.410728,3134.7,3134.0,0.96743284]
[1768309811231,0.29866903,3134.6,3134.0,0.96743284]
[1768309811400,0.29866903,3134.5,3134.0,0.96743284]
[1768309811604,0.29866903,3134.4,3134.0,0.96743284]
[1768309811899,8.410728,3134.7,3134.0,0.96743284]
[1768309811900,0.29866903,3134.3,3134.0,0.96743284]
[1768309812100,3.19030148,3134.5,3134.0,0.96743284]
[1768309812301,0.29882708,3134.4,3134.0,0.96743284]
[1768309812513,0.29882708,3134.3,3134.0,0.96743284]
[1768309812716,3.19030148,3134.5,3134.0,0.96743284]
[1768309812997,0.29882853,3134.4,3134.0,0.96743284]
[1768309813200,3.19030148,3134.5,3134.1,4.8877077]
[1768309813436,0.29894979,3134.4,3134.1,4.8877077]
[1768309813616,3.19030148,3134.5,3134.1,4.8877077]
[1768309813816,0.29894966,3134.4,3134.1,4.8877077]
[1768309814018,3.19030148,3134.5,3134.1,4.8877077]
[1768309814219,0.29894981,3134.4,3134.1,4.8877077]
[1768309814408,3.19030148,3134.5,3134.0,0.96743284]
[1768309814607,0.2989492,3134.4,3134.1,4.8877077]
[1768309814819,3.19030148,3134.5,3134.1,4.8877077]
[1768309815015,0.29894928,3134.4,3134.1,4.8877077]
[1768309815219,3.19030148,3134.5,3134.1,4.8877077]
[1768309815517,0.29894949,3134.4,3134.1,4.8877077]
[1768309815719,3.19030148,3134.5,3134.1,4.8877077]
[1768309816040,0.29894949,3134.4,3134.1,4.8877077]
[1768309816224,3.19022506,3134.6,3134.1,4.8877077]
[1768309816429,0.29894901,3134.5,3134.1,4.8877077]
[1768309816609,0.29894901,3134.4,3134.1,4.8877077]
[1768309816816,6.38045012,3134.6,3134.1,4.8877077]
[1768309817020,0.29895076,3134.5,3134.0,0.96743284]
[1768309817339,0.29895076,3134.4,3134.0,0.96743284]
[1768309817538,7.11378778,3134.6,3134.0,0.96743284]
[1768309817715,0.29895303,3134.5,3133.9,4.8877077]
[1768309817916,0.29895303,3134.4,3133.9,5.81782655]
[1768309818238,7.11378778,3134.6,3133.9,5.81782655]
[1768309818439,0.29895093,3134.5,3133.9,5.81782655]
[1768309818639,0.29895093,3134.4,3133.9,5.81782655]
[1768309818840,7.11378778,3134.6,3133.9,5.81782655]
[1768309819042,0.002,3134.3,3133.9,5.81782655]
[1768309820032,0.002,3134.3,3134.1,4.8877077]
[1768309820551,3.19222506,3134.6,3134.1,6.06882655]
[1768309820755,0.29894651,3134.5,3134.3,4.8877077]
[1768309820940,0.29894651,3134.4,3134.3,4.8877077]
[1768309821259,3.14330728,3134.6,3134.3,4.8877077]
[1768309821446,0.002,3134.6,3134.3,5.81782655]
[1768309821843,0.002,3134.6,3134.1,0.251]
[1768309821844,0.002,3134.9,3134.5,5.81782655]
[1768309822045,3.1905172,3135.1,3134.5,5.81782655]
[1768309822222,3.19180603,3135.0,3134.5,5.81782655]
[1768309822958,0.002,3135.0,3134.5,5.81782655]
[1768309823443,0.002,3135.0,3134.8,2.1]
[1768309827824,0.00080544,3135.1,3134.8,7.91782655]
[1768309831260,0.00280544,3135.1,3134.8,7.91782655]
[1768309832071,0.002,3135.2,3134.9,0.93011885]
[1768309833889,0.0008028,3135.5,3135.0,4.8877077]
[1768309839376,0.96363065,3135.5,3135.0,4.8877077]
[1768309840774,3.18938572,3135.4,3135.0,4.8877077]
[1768309841075,6.37877144,3135.4,3135.0,4.8877077]
[1768309841275,3.18938572,3135.4,3135.0,4.8877077]
[1768309842270,6.37877144,3135.4,3135.0,4.8877077]
[1768309842475,3.18938572,3135.4,3135.0,4.8877077]
[1768309843679,6.37877144,3135.4,3135.0,4.8877077]
[1768309843879,0.002,3135.2,3135.0,4.8877077]
[1768309844657,0.002,3135.2,3134.8,3.03011885]
[1768309844883,0.002,3135.2,3134.9,4.8877077]
[1768309845057,0.002,3135.2,3134.4,0.001]
[1768309845058,0.96363337,3135.1,3134.4,0.001]
[1768309845378,0.96363337,3135.1,3134.5,0.251]
[1768309845579,0.96282785,3135.0,3134.6,0.251]
[1768309845886,0.00080552,3135.1,3134.6,0.251]
[1768309852355,0.96363337,3135.1,3134.6,0.251]
[1768309854468,4.15334971,3135.1,3134.6,0.251]
[1768309855394,0.96282785,3135.0,3134.6,0.251]
[1768309855871,0.002,3134.8,3134.6,0.251]
[1768309861803,0.002,3134.8,3134.7,1.6]
[1768309863474,0.96282785,3134.7,3133.8,0.001]
[1768309863676,0.96282785,3134.5,3134.3,0.09578697]
[1768309863875,0.96282785,3134.6,3134.1,0.09578697]
[1768309864091,0.96282785,3134.6,3134.3,0.09578697]
[1768309864399,0.96282785,3134.6,3133.9,0.09578697]
[1768309864573,0.96282785,3134.6,3134.1,0.09578697]
[1768309864980,0.92676917,3134.4,3134.1,0.09578697]
[1768309865201,3.19030148,3134.5,3134.3,0.09578697]
[1768309866508,3.19030148,3134.5,3134.1,0.09578697]
[1768309868084,0.92676917,3134.4,3133.7,0.09578697]
[1768309868325,0.92676917,3134.4,3133.9,0.251]
[1768309868788,0.92676917,3134.4,3133.7,0.09578697]
[1768309868987,0.92676917,3134.4,3133.9,0.09578697]
[1768309871212,0.92676917,3134.3,3133.9,0.09578697]
[1768309871776,0.92676917,3134.3,3133.7,0.09578697]
[1768309871980,0.92676917,3134.3,3133.8,0.251]
[1768309873349,4.11729953,3134.3,3133.8,0.251]
[1768309875511,3.19009793,3134.7,3134.1,0.09578697]
[1768309875747,7.29457077,3134.7,3134.1,0.09578697]
[1768309876449,0.91437491,3134.6,3134.1,0.09578697]
[1768309877050,0.91437491,3134.6,3134.2,0.03190606]
[1768309877245,0.91437491,3134.6,3134.1,0.09578697]
[1768309878447,4.10462365,3134.6,3134.1,0.09578697]
[1768309879361,0.002,3134.3,3134.1,0.09578697]
[1768309882355,0.002,3134.3,3134.1,3.28643894]
[1768309882560,0.002,3134.6,3134.1,3.28643894]
[1768309882868,0.002,3134.6,3134.1,0.09578697]
[1768309883738,0.002,3134.6,3134.1,3.28649397]
[1768309884173,0.91637491,3134.6,3134.1,0.09578697]
[1768309884475,0.002,3134.6,3134.1,0.09578697]
[1768309884840,0.002,3134.6,3134.1,3.28647989]
[1768309885041,0.002,3134.6,3134.1,3.99162507]
[1768309885241,0.002,3134.6,3134.1,0.80093215]
[1768309885466,0.002,3134.6,3134.1,0.09578697]
[1768309885773,0.002,3134.6,3134.1,0.80093215]
[1768309888240,0.002,3134.6,3134.1,3.99162862]
[1768309889148,0.002,3134.6,3134.3,0.09578697]
[1768309889354,0.002,3134.6,3134.3,0.34678697]
[1768309889971,0.58902367,3134.5,3134.3,0.34678697]
[1768309890160,0.91637491,3134.6,3134.3,0.34678697]
[1768309890475,0.002,3134.8,3134.3,3.53728299]
[1768309890693,0.91637491,3134.8,3134.3,0.34678697]
[1768309891284,0.002,3134.8,3134.3,3.53728353]
[1768309891485,0.002,3134.8,3134.3,0.34678697]
[1768309891846,0.002,3134.6,3134.3,4.43798061]
[1768309894885,3.1925436,3135.1,3134.5,0.09578697]
[1768309895189,4.13287462,3135.1,3134.5,0.09578697]
[1768309895405,7.3226127,3135.1,3134.5,0.09578697]
[1768309898389,3.1925436,3135.1,3134.5,0.09578697]
[1768309899415,3.08616606,3135.1,3134.8,0.99147499]
[1768309899692,3.19212009,3135.5,3135.0,0.99147499]
[1768309900081,0.0028028,3135.5,3135.0,0.99147499]
[1768309900598,0.0028028,3135.5,3135.0,4.18123702]
[1768309901162,0.0028028,3135.5,3135.0,0.99147499]
[1768309901480,0.0028028,3135.5,3135.0,4.18123299]
[1768309901865,0.0028028,3135.5,3135.0,0.99147499]
[1768309902270,0.0028028,3135.5,3135.0,4.18120471]
[1768309903894,0.0028028,3135.5,3135.1,0.99147499]
[1768309905470,0.0028028,3135.5,3135.0,3.18972972]
[1768309905691,0.0028028,3135.5,3135.0,4.18120471]
[1768309909603,0.0028028,3135.5,3135.1,0.99147499]
[1768309909986,0.0028028,3135.5,3135.1,4.18114676]
[1768309910176,0.0028028,3135.5,3135.1,3.18967177]
[1768309910378,0.0028028,3135.5,3134.9,1.33826196]
[1768309910586,0.0028028,3135.5,3135.0,0.99147499]